[Event "RUS-chTW Premier 2019"]
[Site "Sochi"]
[Date "2019.05.03"]
[Round "3.4"]
[White "Bivol, Alina"]
[Black "Guseva, Marina"]
[Result "1/2-1/2"]
[ECO "B92"]
[WhiteElo "2393"]
[BlackElo "2402"]
[Annotator "NA"]
[PlyCount "80"]
[EventDate "2019.05.01"]
[EventType "team-tourn"]
[EventCountry "RUS"]
[SourceTitle "playchess.com"]
[Source "ChessBase"]
[SourceQuality "1"]
[TimeControl "40/5400+30:1800+30"]

1. e4 {[%emt 0:00:00]} c5 {[%emt 0:00:00]} 2. Nf3 {[%emt 0:00:24]} d6 {[%emt 0:00:00]} 3. d4 {[%emt 0:00:18]} cxd4 {[%emt 0:00:00]} 4. Nxd4 {[%emt 0:00:33]} Nf6 {[%emt 0:00:00]} 5. Nc3 {[%emt 0:00:05]} a6 {[%emt 0:00:00]} 6. Be2 {[%emt 0:00:54]} e5 {[%emt 0:00:00]} 7. Nb3 {[%emt 0:00:09]} Be7 {[%emt 0:00:05]} 8. Be3 {[%emt 0:01:13]} Be6 {[%emt 0:00:38]} 9. O-O {[%emt 0:00:37]} O-O {[%emt 0:00:05]} 10. Qd2 {[%emt 0:00:13]} Nbd7 {[%emt 0:08:32]} 11. a4 {[%emt 0:01:51]} Rc8 {[%emt 0:04:34]} 12. a5 {[%emt 0:02:21]} Qc7 {[%emt 0:07:26]} 13. Bf3 {[%emt 0:00:53]} h6 {[%emt 0:01:18]} 14. Rfd1 {[%emt 0:04:49]} Rfd8 {[%emt 0:01:32]} 15. Qe1 {[%emt 0:02:21]} Qc6 {[%emt 0:05:04]} 16. Nc1 {[%emt 0:04:19]} Re8 {[%emt 0:11:39]} 17. Nd3 {[%emt 0:04:53]} Qc7 {[%emt 0:00:52]} 18. Nb4 {[%emt 0:03:30]} Qb8 {[%emt 0:00:21]} 19. Be2 {[%emt 0:05:23]} Ng4 {[%emt 0:06:08]} 20. Bxg4 {[%emt 0:01:44]} Bxg4 {[%emt 0:00:03]} 21. Rd2 {[%emt 0:03:31]} Be6 {[%emt 0:05:21]} 22. Nbd5 {[%emt 0:01:32]} Nf6 {[%emt 0:06:28]} 23. Nxf6+ {[%emt 0:05:08]} Bxf6 {[%emt 0:00:04]} 24. f3 {[%emt 0:00:42]} Rc6 {[%emt 0:01:37]} 25. Qf2 {[%emt 0:02:13]} Bd8 {[%emt 0:02:47]} 26. Qg3 {[%emt 0:04:45]} Kh8 {[%emt 0:00:59]} 27. f4 {[%emt 0:00:36]} exf4 {[%emt 0:13:32]} 28. Bxf4 {[%emt 0:00:14]} Bf6 {[%emt 0:00:20]} 29. Rxd6 {[%emt 0:04:52]} Rxd6 {[%emt 0:01:58]} 30. Bxd6 {[%emt 0:00:10]} Bd4+ {[%emt 0:03:20]} 31. Kh1 {[%emt 0:00:10]} Qc8 {[%emt 0:00:28]} 32. Rd1 {[%emt 0:03:34]} Bxc3 {[%emt 0:01:43]} 33. Qxc3 {[%emt 0:00:48]} Qxc3 {[%emt 0:00:23]} 34. bxc3 {[%emt 0:00:01]} Bd7 {[%emt 0:05:37]} 35. e5 {[%emt 0:00:42]} Bc6 {[%emt 0:00:03]} 36. Kg1 {[%emt 0:00:19]} Re6 {[%emt 0:00:05]} 37. Re1 {[%emt 0:04:56]} f6 {[%emt 0:00:18]} 38. Kf2 {[%emt 0:00:53]} fxe5 {[%emt 0:00:03]} 39. Bxe5 {[%emt 0:00:26]} Kh7 {[%emt 0:00:14]} 40. c4 {[%emt 0:00:00]} g5 {[%emt 0:00:00]} 1/2-1/2

[Event "RUS-chTW Premier 2019"]
[Site "Sochi"]
[Date "2019.05.03"]
[Round "3.5"]
[White "Badelka, Olga"]
[Black "Bodnaruk, Anastasia"]
[Result "1/2-1/2"]
[ECO "E73"]
[WhiteElo "2383"]
[BlackElo "2431"]
[Annotator "NA"]
[PlyCount "82"]
[EventDate "2019.05.01"]
[EventType "team-tourn"]
[EventCountry "RUS"]
[SourceTitle "playchess.com"]
[Source "ChessBase"]
[SourceQuality "1"]
[TimeControl "40/5400+30:1800+30"]

1. d4 {[%emt 0:00:00]} Nf6 {[%emt 0:00:00]} 2. c4 {[%emt 0:00:00]} g6 {[%emt 0:00:00]} 3. Nc3 {[%emt 0:00:00]} Bg7 {[%emt 0:00:00]} 4. e4 {[%emt 0:00:00]} d6 {[%emt 0:00:00]} 5. Be2 {[%emt 0:00:16]} O-O {[%emt 0:00:02]} 6. Be3 {[%emt 0:00:10]} c6 {[%emt 0:01:00]} 7. g4 {[%emt 0:02:39]} d5 {[%emt 0:01:47]} 8. e5 {[%emt 0:04:41]} Ne4 {[%emt 0:01:48]} 9. Nxe4 {[%emt 0:03:29]} dxe4 {[%emt 0:00:04]} 10. Qc2 {[%emt 0:07:14]} c5 {[%emt 0:12:17]} 11. Qxe4 {[%emt 0:00:28]} cxd4 {[%emt 0:09:55]} 12. Bxd4 {[%emt 0:00:41]} Nc6 {[%emt 0:00:06]} 13. Bc3 {[%emt 0:00:29]} Nxe5 {[%emt 0:01:59]} 14. Rd1 {[%emt 0:17:21]} Qc7 {[%emt 0:00:32]} 15. Rd5 {[%emt 0:01:57]} Nc6 {[%emt 0:10:09]} 16. Bxg7 {[%emt 0:00:35]} Kxg7 {[%emt 0:00:05]} 17. Nf3 {[%emt 0:00:20]} Be6 {[%emt 0:08:57]} 18. Rd2 {[%emt 0:02:18]} Rad8 {[%emt 0:00:48]} 19. Rxd8 {[%emt 0:03:32]} Rxd8 {[%emt 0:00:06]} 20. O-O {[%emt 0:00:07]} Qb6 {[%emt 0:05:53]} 21. b3 {[%emt 0:00:58]} Qa5 {[%emt 0:10:48]} 22. a4 {[%emt 0:05:06]} Qc3 {[%emt 0:01:10]} 23. Rb1 {[%emt 0:06:19]} a5 {[%emt 0:02:31]} 24. h3 {[%emt 0:01:29]} Bc8 {[%emt 0:06:21]} 25. Qe3 {[%emt 0:05:51]} Qxe3 {[%emt 0:04:07]} 26. fxe3 {[%emt 0:00:04]} f5 {[%emt 0:00:42]} 27. g5 {[%emt 0:02:51]} e5 {[%emt 0:00:47]} 28. Kf2 {[%emt 0:04:05]} e4 {[%emt 0:03:02]} 29. Ne1 {[%emt 0:06:33]} Rd2 {[%emt 0:00:51]} 30. Ng2 {[%emt 0:02:42]} h6 {[%emt 0:03:09]} 31. Ke1 {[%emt 0:01:00]} Rd8 {[%emt 0:02:08]} 32. gxh6+ {[%emt 0:01:50]} Kxh6 {[%emt 0:00:01]} 33. h4 {[%emt 0:00:10]} Be6 {[%emt 0:09:08]} 34. Nf4 {[%emt 0:01:07]} Bf7 {[%emt 0:00:01]} 35. Rb2 {[%emt 0:05:05]} g5 {[%emt 0:03:58]} 36. hxg5+ {[%emt 0:00:08]} Kxg5 {[%emt 0:00:03]} 37. Bd1 {[%emt 0:03:58]} Ne5 {[%emt 0:00:54]} 38. Rg2+ {[%emt 0:00:48]} Kf6 {[%emt 0:00:18]} 39. Rd2 {[%emt 0:01:42]} Rxd2 {[%emt 0:01:56]} 40. Kxd2 {[%emt 0:00:00]} Nc6 {[%emt 0:00:00]} 41. Ke1 {[%emt 0:14:40]} Ke5 1/2-1/2

[Event "RUS-chTW Premier 2019"]
[Site "Sochi"]
[Date "2019.05.03"]
[Round "3.6"]
[White "Ovod, Evgenija"]
[Black "Dordzhieva, Dinara"]
[Result "1-0"]
[ECO "B22"]
[WhiteElo "2362"]
[BlackElo "2280"]
[Annotator "NA"]
[PlyCount "81"]
[EventDate "2019.05.01"]
[EventType "team-tourn"]
[EventCountry "RUS"]
[SourceTitle "playchess.com"]
[Source "ChessBase"]
[SourceQuality "1"]
[TimeControl "40/5400+30:1800+30"]

1. e4 {[%emt 0:00:00]} c5 {[%emt 0:00:00]} 2. c3 {[%emt 0:00:00]} d5 {[%emt 0:00:00]} 3. exd5 {[%emt 0:00:00]} Qxd5 {[%emt 0:00:00]} 4. d4 {[%emt 0:00:00]} Nf6 {[%emt 0:00:08]} 5. Nf3 {[%emt 0:00:00]} e6 {[%emt 0:00:36]} 6. Na3 {[%emt 0:00:04]} Nc6 {[%emt 0:00:08]} 7. Be3 {[%emt 0:00:08]} cxd4 {[%emt 0:01:19]} 8. Nb5 {[%emt 0:00:07]} Qd8 {[%emt 0:00:08]} 9. Nbxd4 {[%emt 0:00:06]} Nd5 {[%emt 0:19:18]} 10. Nxc6 {[%emt 0:00:09]} bxc6 {[%emt 0:00:35]} 11. Bd2 {[%emt 0:00:06]} Bc5 {[%emt 0:11:45]} 12. Be2 {[%emt 0:00:06]} Qc7 {[%emt 0:02:59]} 13. O-O {[%emt 0:00:20]} O-O {[%emt 0:00:28]} 14. Bd3 {[%emt 0:05:05]} Nf4 {[%emt 0:12:31]} 15. Be4 {[%emt 0:20:49]} Ng6 {[%emt 0:06:55]} 16. Ng5 {[%emt 0:24:54]} Be7 {[%emt 0:13:24]} 17. Qh5 {[%emt 0:01:08]} Bxg5 {[%emt 0:00:07]} 18. Qxg5 {[%emt 0:02:27]} e5 {[%emt 0:01:39]} 19. Qe3 {[%emt 0:04:39]} f5 {[%emt 0:02:28]} 20. Bf3 {[%emt 0:00:39]} Be6 {[%emt 0:01:57]} 21. Rfe1 {[%emt 0:07:46]} Kh8 {[%emt 0:02:20]} 22. b3 {[%emt 0:03:08]} Rae8 {[%emt 0:06:23]} 23. c4 {[%emt 0:00:59]} e4 {[%emt 0:00:43]} 24. Bd1 {[%emt 0:13:58]} c5 {[%emt 0:04:52]} 25. f3 {[%emt 0:04:51]} Bc8 {[%emt 0:06:17]} 26. fxe4 {[%emt 0:01:52]} Rxe4 {[%emt 0:00:08]} 27. Qf2 {[%emt 0:00:06]} Rxe1+ {[%emt 0:01:14]} 28. Bxe1 {[%emt 0:00:50]} Bb7 {[%emt 0:02:21]} 29. Bc3 {[%emt 0:03:04]} Ne5 {[%emt 0:01:49]} 30. Be2 {[%emt 0:01:05]} Be4 {[%emt 0:01:40]} 31. Rf1 {[%emt 0:03:26]} Re8 {[%emt 0:00:09]} 32. Qg3 {[%emt 0:02:20]} Qe7 {[%emt 0:00:51]} 33. Rd1 {[%emt 0:00:43]} Ng6 {[%emt 0:00:37]} 34. Bh5 {[%emt 0:00:32]} f4 {[%emt 0:00:34]} 35. Qf2 {[%emt 0:00:12]} Qg5 {[%emt 0:00:31]} 36. Bxg6 {[%emt 0:01:01]} Qxg6 {[%emt 0:00:24]} 37. Rd7 {[%emt 0:00:12]} Rg8 {[%emt 0:00:19]} 38. Qd2 {[%emt 0:01:10]} h6 {[%emt 0:00:42]} 39. Rd6 {[%emt 0:00:22]} Qg5 {[%emt 0:00:24]} 40. g3 {[%emt 0:00:00]} fxg3 {[%emt 0:00:00]} 41. Rxh6+ {[%emt 0:00:47]} 1-0

[Event "RUS-chTW Premier 2019"]
[Site "Sochi"]
[Date "2019.05.03"]
[Round "3.7"]
[White "Maltsevskaya, Aleksandra"]
[Black "Belenkaya, Dina"]
[Result "1/2-1/2"]
[ECO "B12"]
[WhiteElo "2299"]
[BlackElo "2315"]
[Annotator "NA"]
[PlyCount "112"]
[EventDate "2019.05.01"]
[EventType "team-tourn"]
[EventCountry "RUS"]
[SourceTitle "playchess.com"]
[Source "ChessBase"]
[SourceQuality "1"]
[TimeControl "40/5400+30:1800+30"]

1. e4 {[%emt 0:00:00]} c6 {[%emt 0:00:00]} 2. d4 {[%emt 0:00:00]} d5 {[%emt 0:00:00]} 3. e5 {[%emt 0:00:00]} Bf5 {[%emt 0:00:00]} 4. c4 {[%emt 0:00:10]} e6 {[%emt 0:01:38]} 5. Nc3 {[%emt 0:00:08]} Nd7 {[%emt 0:01:15]} 6. a3 {[%emt 0:00:23]} dxc4 {[%emt 0:03:23]} 7. Bxc4 {[%emt 0:00:05]} Ne7 {[%emt 0:01:50]} 8. Nge2 {[%emt 0:00:10]} Nb6 {[%emt 0:02:10]} 9. Ba2 {[%emt 0:00:08]} Qd7 {[%emt 0:03:01]} 10. O-O {[%emt 0:08:51]} Bg6 {[%emt 0:05:00]} 11. Bg5 {[%emt 0:17:36]} Ned5 {[%emt 0:03:20]} 12. Ng3 {[%emt 0:03:31]} h6 {[%emt 0:04:55]} 13. Bd2 {[%emt 0:01:45]} Nxc3 {[%emt 0:05:09]} 14. bxc3 {[%emt 0:13:03]} c5 {[%emt 0:00:50]} 15. Be3 {[%emt 0:01:03]} c4 {[%emt 0:02:56]} 16. Bb1 {[%emt 0:09:45]} Bxb1 {[%emt 0:06:00]} 17. Qxb1 {[%emt 0:00:07]} Be7 {[%emt 0:02:31]} 18. f4 {[%emt 0:01:03]} g6 {[%emt 0:01:19]} 19. Ne4 {[%emt 0:01:38]} Na4 {[%emt 0:09:39]} 20. Qc2 {[%emt 0:05:08]} b5 {[%emt 0:02:08]} 21. Rad1 {[%emt 0:04:35]} Qc6 {[%emt 0:05:09]} 22. f5 {[%emt 0:13:08]} gxf5 {[%emt 0:01:47]} 23. d5 {[%emt 0:00:04]} exd5 {[%emt 0:00:37]} 24. Nd6+ {[%emt 0:05:20]} Bxd6 {[%emt 0:01:45]} 25. exd6 {[%emt 0:00:40]} O-O-O {[%emt 0:10:35]} 26. Qxf5+ {[%emt 0:00:08]} Rd7 {[%emt 0:02:35]} 27. Rxd5 {[%emt 0:00:49]} a6 {[%emt 0:02:34]} 28. Bd4 {[%emt 0:03:27]} Rg8 {[%emt 0:00:15]} 29. Qf3 {[%emt 0:00:11]} Kb7 {[%emt 0:01:50]} 30. Rf5 {[%emt 0:00:45]} Qxf3 {[%emt 0:00:48]} 31. R1xf3 {[%emt 0:00:05]} Rxd6 {[%emt 0:01:31]} 32. Rxf7+ {[%emt 0:00:05]} Kc6 {[%emt 0:00:25]} 33. Ra7 {[%emt 0:05:47]} Kd5 {[%emt 0:02:01]} 34. Re3 {[%emt 0:00:23]} Rg5 {[%emt 0:04:06]} 35. h4 {[%emt 0:01:21]} Rh5 {[%emt 0:00:48]} 36. Kf2 {[%emt 0:02:52]} Nb2 {[%emt 0:02:43]} 37. Kf3 {[%emt 0:02:01]} Nd3 {[%emt 0:01:10]} 38. g3 {[%emt 0:01:54]} Rf5+ {[%emt 0:03:04]} 39. Kg4 {[%emt 0:00:38]} Rf8 {[%emt 0:01:05]} 40. h5 {[%emt 0:00:00]} Rf1 {[%emt 0:00:00]} 41. Rf3 {[%emt 0:09:23]} Rxf3 {[%emt 0:06:49]} 42. Kxf3 {[%emt 0:00:05]} Ne5+ {[%emt 0:15:06]} 43. Kf4 {[%emt 0:02:39]} Rf6+ {[%emt 0:01:55]} 44. Ke3 {[%emt 0:00:05]} Rf3+ {[%emt 0:03:11]} 45. Ke2 {[%emt 0:00:10]} Rxg3 {[%emt 0:00:24]} 46. Rxa6 {[%emt 0:03:44]} Rg2+ {[%emt 0:06:19]} 47. Kf1 {[%emt 0:02:19]} Ra2 {[%emt 0:01:16]} 48. Rf6 {[%emt 0:08:53]} Nc6 {[%emt 0:01:17]} 49. Be3 {[%emt 0:01:12]} Rxa3 {[%emt 0:00:40]} 50. Bxh6 {[%emt 0:00:26]} Rxc3 {[%emt 0:00:16]} 51. Rf5+ {[%emt 0:02:28]} Ke4 {[%emt 0:00:58]} 52. Rxb5 {[%emt 0:00:07]} Nd4 {[%emt 0:01:16]} 53. Rc5 {[%emt 0:00:31]} Nf5 {[%emt 0:01:28]} 54. Bd2 {[%emt 0:01:50]} Rh3 {[%emt 0:03:24]} 55. Rxc4+ {[%emt 0:00:57]} Kd5 {[%emt 0:00:18]} 56. Rf4 {[%emt 0:00:11]} Rxh5 {[%emt 0:00:12]} 1/2-1/2

[Event "RUS-chTW Premier 2019"]
[Site "Sochi"]
[Date "2019.05.03"]
[Round "3.8"]
[White "Styazhkina, Anna"]
[Black "Diakonova, Ekaterina"]
[Result "1-0"]
[ECO "B12"]
[WhiteElo "2272"]
[BlackElo "2211"]
[Annotator "NA"]
[PlyCount "81"]
[EventDate "2019.05.01"]
[EventType "team-tourn"]
[EventCountry "RUS"]
[SourceTitle "playchess.com"]
[Source "ChessBase"]
[SourceQuality "1"]
[TimeControl "40/5400+30:1800+30"]

1. e4 {[%emt 0:00:00]} c6 {[%emt 0:00:00]} 2. d4 {[%emt 0:00:00]} d5 {[%emt 0:00:00]} 3. e5 {[%emt 0:00:29]} Bf5 {[%emt 0:00:00]} 4. h4 {[%emt 0:00:33]} h5 {[%emt 0:00:00]} 5. c4 {[%emt 0:00:38]} e6 {[%emt 0:00:17]} 6. Nc3 {[%emt 0:00:19]} Nd7 {[%emt 0:02:48]} 7. Bg5 {[%emt 0:10:11]} f6 {[%emt 0:07:49]} 8. exf6 {[%emt 0:02:03]} gxf6 {[%emt 0:00:07]} 9. Be3 {[%emt 0:04:35]} Bd6 {[%emt 0:06:05]} 10. cxd5 {[%emt 0:08:54]} exd5 {[%emt 0:05:40]} 11. Be2 {[%emt 0:07:01]} Bg6 {[%emt 0:00:34]} 12. Nh3 {[%emt 0:00:33]} Qb6 {[%emt 0:02:14]} 13. Qd2 {[%emt 0:13:49]} O-O-O {[%emt 0:00:55]} 14. Bf4 {[%emt 0:04:01]} Bxf4 {[%emt 0:08:58]} 15. Nxf4 {[%emt 0:01:05]} Bf7 {[%emt 0:00:29]} 16. Na4 {[%emt 0:09:02]} Qc7 {[%emt 0:00:12]} 17. b4 {[%emt 0:00:17]} Nb6 {[%emt 0:02:59]} 18. Nxb6+ {[%emt 0:03:45]} axb6 {[%emt 0:02:24]} 19. a4 {[%emt 0:00:47]} Ne7 {[%emt 0:04:07]} 20. a5 {[%emt 0:05:22]} Nf5 {[%emt 0:02:53]} 21. b5 {[%emt 0:06:21]} bxa5 {[%emt 0:05:28]} 22. Rxa5 {[%emt 0:03:40]} Qb6 {[%emt 0:02:03]} 23. Ra4 {[%emt 0:10:24]} Nd6 {[%emt 0:11:37]} 24. bxc6 {[%emt 0:03:25]} Qb1+ {[%emt 0:05:21]} 25. Qd1 {[%emt 0:03:20]} Qxd1+ {[%emt 0:01:41]} 26. Kxd1 {[%emt 0:00:09]} bxc6 {[%emt 0:02:14]} 27. Rh3 {[%emt 0:00:09]} Rhe8 {[%emt 0:14:13]} 28. Rb3 {[%emt 0:01:53]} Nb5 {[%emt 0:00:59]} 29. Bxb5 {[%emt 0:00:41]} cxb5 {[%emt 0:00:02]} 30. Rxb5 {[%emt 0:00:22]} Re4 {[%emt 0:00:16]} 31. g3 {[%emt 0:00:35]} Kc7 {[%emt 0:03:27]} 32. Ra7+ {[%emt 0:00:40]} Kc6 {[%emt 0:00:01]} 33. Rb4 {[%emt 0:00:38]} Be8 {[%emt 0:04:58]} 34. Ra6+ {[%emt 0:00:17]} Kd7 {[%emt 0:00:45]} 35. Nxd5 {[%emt 0:00:18]} Re6 {[%emt 0:00:37]} 36. Rb7+ {[%emt 0:00:59]} Kc8 {[%emt 0:00:01]} 37. Rc7+ {[%emt 0:00:27]} Kb8 {[%emt 0:00:07]} 38. Rxe6 {[%emt 0:00:11]} Ba4+ {[%emt 0:00:05]} 39. Kd2 {[%emt 0:00:50]} Rxd5 {[%emt 0:00:03]} 40. Rc4 {[%emt 0:00:00]} Bd7 {[%emt 0:00:00]} 41. Rxf6 {[%emt 0:00:30]} 1-0

[Event "RUS-chTW Premier 2019"]
[Site "Sochi"]
[Date "2019.05.03"]
[Round "3.9"]
[White "Loskutova, Viktoriya"]
[Black "Ambartsumova, Karina"]
[Result "1/2-1/2"]
[ECO "B47"]
[WhiteElo "2096"]
[BlackElo "2364"]
[Annotator "NA"]
[PlyCount "81"]
[EventDate "2019.05.01"]
[EventType "team-tourn"]
[EventCountry "RUS"]
[SourceTitle "playchess.com"]
[Source "ChessBase"]
[SourceQuality "1"]
[TimeControl "40/5400+30:1800+30"]

1. e4 {[%emt 0:00:00]} c5 {[%emt 0:00:00]} 2. Nf3 {[%emt 0:00:00]} e6 {[%emt 0:00:02]} 3. d4 {[%emt 0:00:00]} cxd4 {[%emt 0:00:08]} 4. Nxd4 {[%emt 0:00:00]} Nc6 {[%emt 0:00:47]} 5. Nc3 {[%emt 0:00:22]} Qc7 {[%emt 0:00:33]} 6. Be2 {[%emt 0:03:26]} a6 {[%emt 0:00:58]} 7. O-O {[%emt 0:00:23]} Nf6 {[%emt 0:00:32]} 8. Be3 {[%emt 0:00:24]} Be7 {[%emt 0:01:43]} 9. f4 {[%emt 0:00:17]} d6 {[%emt 0:00:11]} 10. Kh1 {[%emt 0:00:07]} O-O {[%emt 0:00:33]} 11. Qe1 {[%emt 0:00:07]} Nxd4 {[%emt 0:00:19]} 12. Bxd4 {[%emt 0:00:06]} b5 {[%emt 0:00:06]} 13. a3 {[%emt 0:00:13]} Nd7 {[%emt 0:04:38]} 14. Qg3 {[%emt 0:10:27]} Bf6 {[%emt 0:01:18]} 15. Bxf6 {[%emt 0:02:07]} Nxf6 {[%emt 0:00:06]} 16. Bd3 {[%emt 0:06:39]} Bb7 {[%emt 0:08:53]} 17. e5 {[%emt 0:12:17]} Nd7 {[%emt 0:13:52]} 18. exd6 {[%emt 0:15:57]} Qxd6 {[%emt 0:00:13]} 19. Rad1 {[%emt 0:00:05]} Bd5 {[%emt 0:22:47]} 20. Qh3 {[%emt 0:18:04]} Nf6 {[%emt 0:06:47]} 21. Ne4 {[%emt 0:03:25]} Nxe4 {[%emt 0:00:58]} 22. Bxe4 {[%emt 0:00:01]} f5 {[%emt 0:05:05]} 23. Bxd5 {[%emt 0:01:32]} exd5 {[%emt 0:00:09]} 24. Qf3 {[%emt 0:02:31]} Rad8 {[%emt 0:03:23]} 25. Rfe1 {[%emt 0:03:09]} Rfe8 {[%emt 0:02:30]} 26. Rxe8+ {[%emt 0:02:55]} Rxe8 {[%emt 0:00:05]} 27. g3 {[%emt 0:02:15]} Re4 {[%emt 0:06:56]} 28. Qb3 {[%emt 0:11:47]} Rc4 {[%emt 0:09:06]} 29. Qd3 {[%emt 0:00:22]} Qe6 {[%emt 0:02:05]} 30. Qxd5 {[%emt 0:03:14]} Qxd5+ {[%emt 0:00:21]} 31. Rxd5 {[%emt 0:00:04]} Rxc2 {[%emt 0:00:06]} 32. Rd6 {[%emt 0:00:08]} a5 {[%emt 0:01:10]} 33. b3 {[%emt 0:00:04]} Rc3 {[%emt 0:03:58]} 34. Ra6 {[%emt 0:00:18]} Rxb3 {[%emt 0:00:39]} 35. Rxa5 {[%emt 0:00:05]} Kf7 {[%emt 0:01:39]} 36. a4 {[%emt 0:03:52]} bxa4 {[%emt 0:01:09]} 37. Rxa4 {[%emt 0:00:02]} Rb2 {[%emt 0:00:17]} 38. Ra6 {[%emt 0:00:10]} h6 {[%emt 0:00:36]} 39. Ra7+ {[%emt 0:00:14]} Kf6 {[%emt 0:00:36]} 40. Ra6+ {[%emt 0:00:00]} Kf7 {[%emt 0:00:00]} 41. Ra7+ {[%emt 0:00:12]} 1/2-1/2

[Event "RUS-chTW Premier 2019"]
[Site "Sochi"]
[Date "2019.05.03"]
[Round "3.10"]
[White "Markelova, Lubov"]
[Black "Zakharova, Viktoriya"]
[Result "1-0"]
[ECO "A05"]
[WhiteElo "2199"]
[BlackElo "1926"]
[Annotator "NA"]
[PlyCount "124"]
[EventDate "2019.05.01"]
[EventType "team-tourn"]
[EventCountry "RUS"]
[SourceTitle "playchess.com"]
[Source "ChessBase"]
[SourceQuality "1"]
[TimeControl "40/5400+30:1800+30"]

1. Nf3 {[%emt 0:00:00]} Nf6 {[%emt 0:00:00]} 2. c4 {[%emt 0:00:00]} e6 {[%emt 0:00:00]} 3. e3 {[%emt 0:00:27]} b6 {[%emt 0:00:13]} 4. b3 {[%emt 0:02:06]} Bb7 {[%emt 0:00:43]} 5. Bb2 {[%emt 0:01:15]} Be7 {[%emt 0:01:14]} 6. Nc3 {[%emt 0:05:01]} d5 {[%emt 0:04:37]} 7. d4 {[%emt 0:00:59]} Nbd7 {[%emt 0:04:40]} 8. Bd3 {[%emt 0:01:08]} a6 {[%emt 0:06:11]} 9. O-O {[%emt 0:01:29]} O-O {[%emt 0:02:54]} 10. cxd5 {[%emt 0:00:19]} exd5 {[%emt 0:00:21]} 11. Rc1 {[%emt 0:02:16]} Bd6 {[%emt 0:03:14]} 12. Qc2 {[%emt 0:05:22]} Re8 {[%emt 0:09:02]} 13. Ne2 {[%emt 0:02:36]} Rc8 {[%emt 0:08:02]} 14. Ng3 {[%emt 0:02:24]} g6 {[%emt 0:08:03]} 15. Rfd1 {[%emt 0:12:33]} Qe7 {[%emt 0:09:24]} 16. Qe2 {[%emt 0:03:39]} Ba3 {[%emt 0:05:19]} 17. Rd2 {[%emt 0:23:33]} b5 {[%emt 0:08:11]} 18. Rdc2 {[%emt 0:11:35]} Bxb2 {[%emt 0:01:10]} 19. Rxb2 {[%emt 0:00:04]} c5 {[%emt 0:02:30]} 20. dxc5 {[%emt 0:01:29]} Nxc5 {[%emt 0:00:16]} 21. Rbc2 {[%emt 0:00:58]} h5 {[%emt 0:07:43]} 22. Qd1 {[%emt 0:14:01]} Nxd3 {[%emt 0:04:45]} 23. Qxd3 {[%emt 0:00:06]} Ne4 {[%emt 0:06:41]} 24. Rxc8 {[%emt 0:00:28]} Bxc8 {[%emt 0:01:18]} 25. Nd4 {[%emt 0:00:25]} Qf6 {[%emt 0:03:39]} 26. Nxe4 {[%emt 0:00:32]} dxe4 {[%emt 0:00:10]} 27. Qc3 {[%emt 0:03:48]} h4 {[%emt 0:02:08]} 28. Qc6 {[%emt 0:01:25]} Qe7 {[%emt 0:00:06]} 29. Qc7 {[%emt 0:02:06]} Qb4 {[%emt 0:01:02]} 30. h3 {[%emt 0:01:11]} Qa3 {[%emt 0:00:44]} 31. Rc2 {[%emt 0:00:20]} Qf8 {[%emt 0:00:28]} 32. Qf4 {[%emt 0:00:30]} Bd7 {[%emt 0:00:39]} 33. Rc7 {[%emt 0:00:44]} Rd8 {[%emt 0:00:26]} 34. Qxh4 {[%emt 0:00:18]} Kg7 {[%emt 0:00:29]} 35. Qxe4 {[%emt 0:00:48]} Qd6 {[%emt 0:00:29]} 36. Rc1 {[%emt 0:00:50]} Re8 {[%emt 0:00:31]} 37. Qf3 {[%emt 0:00:31]} a5 {[%emt 0:00:34]} 38. Qd1 {[%emt 0:00:56]} Qb6 {[%emt 0:00:28]} 39. Nf3 {[%emt 0:00:28]} Bc8 {[%emt 0:00:26]} 40. Qd4+ {[%emt 0:00:00]} Qxd4 {[%emt 0:00:00]} 41. Nxd4 {[%emt 0:00:17]} Bd7 {[%emt 0:02:42]} 42. Rc7 {[%emt 0:01:06]} Rd8 {[%emt 0:00:06]} 43. Rb7 {[%emt 0:01:08]} a4 {[%emt 0:01:15]} 44. Kf1 {[%emt 0:01:44]} Kh6 {[%emt 0:02:40]} 45. Ke2 {[%emt 0:01:15]} Be8 {[%emt 0:00:37]} 46. Rb6 {[%emt 0:05:12]} Rc8 {[%emt 0:11:54]} 47. Kd2 {[%emt 0:01:26]} Rd8 {[%emt 0:06:25]} 48. Kc3 {[%emt 0:00:45]} Rc8+ {[%emt 0:00:09]} 49. Kb4 {[%emt 0:01:02]} axb3 {[%emt 0:01:50]} 50. axb3 {[%emt 0:00:12]} Kg7 {[%emt 0:01:47]} 51. g4 {[%emt 0:03:24]} Ra8 {[%emt 0:02:00]} 52. f4 {[%emt 0:00:57]} Ra1 {[%emt 0:01:46]} 53. Rb8 {[%emt 0:00:59]} Kf8 {[%emt 0:00:14]} 54. Nxb5 {[%emt 0:00:31]} Ke7 {[%emt 0:00:22]} 55. Rb7+ {[%emt 0:01:10]} Bd7 {[%emt 0:00:17]} 56. Nc3 {[%emt 0:03:45]} Rh1 {[%emt 0:00:29]} 57. Kc5 {[%emt 0:00:43]} Rc1 {[%emt 0:00:23]} 58. Kd4 {[%emt 0:00:36]} Rh1 {[%emt 0:01:25]} 59. Ke5 {[%emt 0:01:46]} f6+ {[%emt 0:00:24]} 60. Kd4 {[%emt 0:00:08]} Kd6 {[%emt 0:01:25]} 61. Rb6+ {[%emt 0:01:38]} Bc6 {[%emt 0:00:40]} 62. b4 {[%emt 0:00:53]} Kc7 {[%emt 0:00:03] Ke4} 1-0

[Event "RUS-chTW Premier 2019"]
[Site "Sochi"]
[Date "2019.05.03"]
[Round "3.11"]
[White "Degtyareva, Kristina"]
[Black "Shafigullina, Zarina"]
[Result "0-1"]
[ECO "B33"]
[WhiteElo "1812"]
[BlackElo "2299"]
[Annotator "NA"]
[PlyCount "60"]
[EventDate "2019.05.01"]
[EventType "team-tourn"]
[EventCountry "RUS"]
[SourceTitle "playchess.com"]
[Source "ChessBase"]
[SourceQuality "1"]
[TimeControl "40/5400+30:1800+30"]

1. e4 {[%emt 0:00:00]} c5 {[%emt 0:00:00]} 2. Nf3 {[%emt 0:00:00]} Nc6 {[%emt 0:00:00]} 3. d4 {[%emt 0:00:00]} cxd4 {[%emt 0:00:00]} 4. Nxd4 {[%emt 0:00:00]} Nf6 {[%emt 0:00:00]} 5. Nc3 {[%emt 0:00:09]} e5 {[%emt 0:00:00]} 6. Ndb5 {[%emt 0:00:13]} d6 {[%emt 0:00:00]} 7. Bg5 {[%emt 0:00:50]} a6 {[%emt 0:00:00]} 8. Na3 {[%emt 0:00:08]} b5 {[%emt 0:00:00]} 9. Bxf6 {[%emt 0:00:17]} gxf6 {[%emt 0:00:00]} 10. Nd5 {[%emt 0:00:08]} f5 {[%emt 0:00:01]} 11. g3 {[%emt 0:00:26]} fxe4 {[%emt 0:02:32]} 12. Bg2 {[%emt 0:00:18]} Bf5 {[%emt 0:16:22]} 13. g4 {[%emt 0:05:08]} Bg6 {[%emt 0:00:42]} 14. h4 {[%emt 0:00:38]} h5 {[%emt 0:00:53]} 15. c4 {[%emt 0:01:18]} Nd4 {[%emt 0:03:45]} 16. Rc1 {[%emt 0:05:15]} Ra7 {[%emt 0:09:02]} 17. g5 {[%emt 0:04:31]} Bg7 {[%emt 0:00:19]} 18. O-O {[%emt 0:04:57]} O-O {[%emt 0:04:32]} 19. Re1 {[%emt 0:01:33]} f5 {[%emt 0:21:57]} 20. cxb5 {[%emt 0:30:08]} axb5 {[%emt 0:00:04]} 21. Nb4 {[%emt 0:00:43]} Qd7 {[%emt 0:02:16]} 22. Nac2 {[%emt 0:06:55]} Rc7 {[%emt 0:03:26]} 23. Re3 {[%emt 0:13:28]} Rfc8 {[%emt 0:01:39]} 24. Bf1 {[%emt 0:02:57]} f4 {[%emt 0:03:32]} 25. Bh3 {[%emt 0:02:00]} Bf5 {[%emt 0:00:06]} 26. Nd5 {[%emt 0:10:38]} fxe3 {[%emt 0:01:18]} 27. Bxf5 {[%emt 0:05:11]} Qxf5 {[%emt 0:00:24]} 28. Ncxe3 {[%emt 0:01:43]} Rxc1 {[%emt 0:01:42]} 29. Ne7+ {[%emt 0:00:09]} Kf7 {[%emt 0:00:41]} 30. N7xf5 {[%emt 0:00:49]} Rxd1+ {[%emt 0:00:14]} 0-1